{"text_format":"1","workbook":"xlsx","n_sheets":3,"sheets":["Instrucciones","Reformulación Presupuesto Bc","Resumen Presupuesto"],"not_rendered":{"charts":0,"images":4,"macros":1,"external_links":0,"defined_names":8,"comments":2,"pivot_tables":0},"unopened":[],"bounds":{"document_bytes":16777216,"sheet_cells":100000,"rows_first":2000,"rows_last":500,"rows_between":2000,"halvings":0,"cell_chars":16384,"cell_head_chars":4096},"cells_cut":0,"cells_raw":0,"read":"whole","date_system":"1900"}

{"sheet":"Instrucciones","index":0,"n_rows":15,"n_cols":10,"rows_kept":15,"cut":false,"hidden":false,"merged":[[1,9,1,11],[4,2,4,17],[2,2,3,17],[14,1,15,14]]}
[]
[null,null,null,null,null,null,null,null,null,"Doc_basico3_presup_reformulado_Bc INSTRUCCIONES"]
[null,null,"SUBVENCIONES DEL AYUNTAMIENTO DE BARCELONA PARA EL FORTALECIMIENTO DE LA ECONOMIA SOCIAL Y SOLIDARIA Y PARA LA INTERCOOPERACIÓN EN LA ESTRATEGIA #ESSBCN2030 - FORTALECEMOS LA ESS 2024"]
[]
[null,null,"Aspectos relevantes relacionados con la reformulación"]
[]
[]
[]
[]
[null,"1. Rellenar la pestaña  \"Reformulación Presupuesto\" con los datos económicos del proyecto:"]
[null,"1.1  Rellenar los cuadros DATOS BÁSICOS-PREVISIÓN DE GASTOS DEL PROYECTO SUBVENCIONABLE INICIAL, con los datos económicos de la propuesta inicial con subvención otorgada."]
[null,"1.2  Rellenar los cuadros DATOS BÁSICOS-PREVISIÓN DE GASTOS DEL PROYECTO REFORMULADO, con los datos económicos de la propuesta de reformulación."]
[null,"2. Revisar y rellenar la pestaña  \"Resumen Presupuesto\" con los datos económicos del proyecto."]
[null,"3. Imprimir las hojas de las 2 pestañas (Reformulación presupuesto y Resumen Presupuesto). En formato pdf."]
[null,"4. Si la solicitud se presentó por vía telemática, es necesario registrar la documentación, telemáticamente, como trámite específico, dentro la convocatoria específica como anexión de documentos adicionales y utilizar el número de trámite que el sistema de registro os dio en el momento de la presentación de la solicitud de la subvención."]

{"sheet":"Reformulación Presupuesto Bc","index":1,"n_rows":133,"n_cols":13,"rows_kept":133,"cut":false,"hidden":false,"merged":[[5,2,5,5],[17,5,17,8],[3,0,4,12],[1,1,1,12],[116,0,116,12],[17,10,17,12],[112,0,112,12],[113,0,113,12],[114,0,114,12],[115,0,115,12],[17,0,17,3],[117,0,117,12],[118,0,118,12],[119,0,119,12],[120,0,120,12],[121,0,121,12],[122,0,122,12],[123,0,123,12],[124,0,124,12],[125,0,125,12],[131,0,131,12],[132,0,132,12],[126,0,126,12],[127,0,127,12],[128,0,128,12],[129,0,129,12],[130,0,130,12]]}
[]
[null,"Reformulación presupuesto Modalidad Bc"]
[]
["Programa de subvenciones del Ayuntamiento de Barcelona para el fortalecimiento de la Economía Social y Solidaria y para la intercooperación en la Estrategia #ESSBCN2030 - FORTALECEMOS LA ESS 2024"]
[]
[]
["DATOS BÁSICOS"]
["Nombre de la persona jurídica",null,{"$f":"+IF(H8>Dadesbasiques[[#This Row],[Columna1]],\"ALERTA: La quantia de la subvenció atorgada no pot superar el 80% de la despesa total del projecte a subvencionar\", \" \")","v":" "},null,null,"  "]
["NIF de la persona jurídica",null,{"$f":"+IF(H9>Dadesbasiques[[#This Row],[Columna1]],\"ALERTA: La quantia de la subvenció atorgada no pot superar el 80% de la despesa total del projecte a subvencionar\", \" \")","v":" "}]
["Nombre del proyecto subvencionable",null,{"$f":"+IF(G10>Dadesbasiques[[#This Row],[Columna1]],\"ALERTA: La quantia de la subvenció atorgada no pot superar el 80% de la despesa total del projecte a subvencionar\", \" \")","v":" "},null,null,"DATOS BÁSICOS PROYECTO REFORMULADO"]
["Importe total del proyecto subvencionable",null,null,null,null,"Importe total del proyecto REFORMULADO"]
["Importe imputable a la subvención municipal",null,null,null,null,"Importe imputable a la subvención OTORGADA"]
["Importe de la aportación / Cofinanciación de la organización",{"$f":"+B11-B12","v":0},null,null,null,"Importe de la aportación / Cofinanciación de la organización",{"$f":"G11-G12","v":0}]
["% del importe solicitado respecto el total del proyecto subvencionable (*)",{"$f":"B12/B11","v":{"$error":"#DIV/0!"}},null,null,null,"% del importe solicitado respecto el total del proyecto subvencionado",{"$f":"G12/G11","v":{"$error":"#DIV/0!"}},{"$f":"+IF(G14>Dadesbasiques[[#This Row],[Columna1]],\"*Aquest percentatge ha de ser igual o menor al percentatge subvencionat inicialment.\",\" \")","v":{"$error":"#DIV/0!"}}]
["Data inici del projecte subvencionat (dd/mm/aaaa)",null,{"$f":"+IF(H15>Dadesbasiques[[#This Row],[Columna1]],\"ALERTA: La quantia de la subvenció atorgada no pot superar el 80% de la despesa total del projecte a subvencionar\", \" \")","v":" "}]
["Data fi del projecte subvencionat (dd/mm/aaaa)",null,{"$f":"+IF(H16>Dadesbasiques[[#This Row],[Columna1]],\"ALERTA: La quantia de la subvenció atorgada no pot superar el 80% de la despesa total del projecte a subvencionar\", \" \")","v":" "}]
[]
["PREVISIÓN DE GASTOS DEL PROYECTO SUBVENCIONABLE INICIAL",null,null,null,null,"PREVISIÓN DE GASTOS DEL PROYECT REFORMULADO",null,null,null,null,"DIFERENCIA REFORMULACIÓN Y PROYECTO INICIAL"]
[]
["Partidas","Importe imputable a la subvención municipal","Importe de la aportación / Cofinanciación de la organización","Importe total del proyecto",null,"Partidas","Importe imputable a la subvención municipal","Importe de la aportación / Cofinanciación de la organización","Importe total del proyecto",null,"Importe imputable a la subvención municipal","Importe de la aportación / Cofinanciación de la organización","Importe total del proyecto"]
["D1. Retribuciones y seguridad social (régimen general o socios/as cooperativistas en régimen de autónomos) del personal propio vinculado al proyecto (máximo 25% subvención)",{"$f":"SUM(B22:B25)","v":0},{"$f":"SUM(C22:C25)","v":0},{"$f":"SUM(DespesesProjecte[[#This Row],[Importe imputable a la subvención municipal]],DespesesProjecte[[#This Row],[Importe de la aportación / Cofinanciación de la organización]])","v":0},null,"D1. Retribuciones y seguridad social (régimen general o socios/as cooperativistas en régimen de autónomos) del personal propio vinculado al proyecto (máximo 25% subvención)",{"$f":"SUM(G22:G25)","v":0},{"$f":"SUM(H22:H25)","v":0},{"$f":"+G21+H21","v":0},null,{"$f":"DespesesProjecte[[#This Row],[Importe imputable a la subvención municipal]]-G21","v":0},{"$f":"DespesesProjecte[[#This Row],[Importe de la aportación / Cofinanciación de la organización]]-H21","v":0},{"$f":"DespesesProjecte[[#This Row],[Importe total del proyecto]]-I21","v":0}]
[null,null,null,{"$f":"SUM(DespesesProjecte[[#This Row],[Importe imputable a la subvención municipal]],DespesesProjecte[[#This Row],[Importe de la aportación / Cofinanciación de la organización]])","v":0},null,null,null,null,{"$f":"+G22+H22","v":0},null,{"$f":"DespesesProjecte[[#This Row],[Importe imputable a la subvención municipal]]-G22","v":0},{"$f":"DespesesProjecte[[#This Row],[Importe de la aportación / Cofinanciación de la organización]]-H22","v":0},{"$f":"DespesesProjecte[[#This Row],[Importe total del proyecto]]-I22","v":0}]
[null,null,null,{"$f":"SUM(DespesesProjecte[[#This Row],[Importe imputable a la subvención municipal]],DespesesProjecte[[#This Row],[Importe de la aportación / Cofinanciación de la organización]])","v":0},null,null,null,null,0,null,{"$f":"DespesesProjecte[[#This Row],[Importe imputable a la subvención municipal]]-G23","v":0},{"$f":"DespesesProjecte[[#This Row],[Importe de la aportación / Cofinanciación de la organización]]-H23","v":0},{"$f":"DespesesProjecte[[#This Row],[Importe total del proyecto]]-I23","v":0}]
[null,null,null,{"$f":"SUM(DespesesProjecte[[#This Row],[Importe imputable a la subvención municipal]],DespesesProjecte[[#This Row],[Importe de la aportación / Cofinanciación de la organización]])","v":0},null,null,null,null,0,null,{"$f":"DespesesProjecte[[#This Row],[Importe imputable a la subvención municipal]]-G24","v":0},{"$f":"DespesesProjecte[[#This Row],[Importe de la aportación / Cofinanciación de la organización]]-H24","v":0},{"$f":"DespesesProjecte[[#This Row],[Importe total del proyecto]]-I24","v":0}]
[null,null,null,{"$f":"SUM(DespesesProjecte[[#This Row],[Importe imputable a la subvención municipal]],DespesesProjecte[[#This Row],[Importe de la aportación / Cofinanciación de la organización]])","v":0},null,null,null,null,0,null,{"$f":"DespesesProjecte[[#This Row],[Importe imputable a la subvención municipal]]-G25","v":0},{"$f":"DespesesProjecte[[#This Row],[Importe de la aportación / Cofinanciación de la organización]]-H25","v":0},{"$f":"DespesesProjecte[[#This Row],[Importe total del proyecto]]-I25","v":0}]
["TOTAL DE GASTOS DEL PERSONAL\nMáximo 25% del importe imputable a la subvención municipal si se trata de personal propio asignado directamente al proyecto subvencionado",{"$f":"SUM(B21)","v":0},{"$f":"SUM(C21)","v":0},{"$f":"SUM(D21)","v":0},null,"TOTAL DE GASTOS DEL PERSONAL\nMáximo 25% del importe imputable a la subvención municipal si se trata de personal propio asignado directamente al proyecto subvencionado",{"$f":"SUM(G21)","v":0},{"$f":"SUM(H21)","v":0},{"$f":"SUM(I21)","v":0},{"$f":"+IF(G26>G12*0.25,\"ALERTA: Màxim 25% de l'import imputable a la subvenció municipal\", \" \")","v":" "},{"$f":"DespesesProjecte[[#This Row],[Importe imputable a la subvención municipal]]-G26","v":0},{"$f":"DespesesProjecte[[#This Row],[Importe de la aportación / Cofinanciación de la organización]]-H26","v":0},{"$f":"DespesesProjecte[[#This Row],[Importe total del proyecto]]-I26","v":0}]
["D2. Trabajos realizados por profesionales y empresas externas directamente vinculadas al proyecto",{"$f":"SUM(B28:B30)","v":0},{"$f":"SUM(C28:C30)","v":0},{"$f":"SUM(DespesesProjecte[[#This Row],[Importe imputable a la subvención municipal]],DespesesProjecte[[#This Row],[Importe de la aportación / Cofinanciación de la organización]])","v":0},null,"D2. Trabajos realizados por profesionales y empresas externas directamente vinculadas al proyecto",{"$f":"SUM(G28:G30)","v":0},{"$f":"SUM(H28:H30)","v":0},{"$f":"+G27+H27","v":0},null,{"$f":"DespesesProjecte[[#This Row],[Importe imputable a la subvención municipal]]-G27","v":0},{"$f":"DespesesProjecte[[#This Row],[Importe de la aportación / Cofinanciación de la organización]]-H27","v":0},{"$f":"DespesesProjecte[[#This Row],[Importe total del proyecto]]-I27","v":0}]
[null,null,null,{"$f":"SUM(DespesesProjecte[[#This Row],[Importe imputable a la subvención municipal]],DespesesProjecte[[#This Row],[Importe de la aportación / Cofinanciación de la organización]])","v":0},null,null,null,null,{"$f":"+G28+H28","v":0},null,{"$f":"DespesesProjecte[[#This Row],[Importe imputable a la subvención municipal]]-G28","v":0},{"$f":"DespesesProjecte[[#This Row],[Importe de la aportación / Cofinanciación de la organización]]-H28","v":0},{"$f":"DespesesProjecte[[#This Row],[Importe total del proyecto]]-I28","v":0}]
[null,null,null,{"$f":"SUM(DespesesProjecte[[#This Row],[Importe imputable a la subvención municipal]],DespesesProjecte[[#This Row],[Importe de la aportación / Cofinanciación de la organización]])","v":0},null,null,null,null,0,null,{"$f":"DespesesProjecte[[#This Row],[Importe imputable a la subvención municipal]]-G29","v":0},{"$f":"DespesesProjecte[[#This Row],[Importe de la aportación / Cofinanciación de la organización]]-H29","v":0},{"$f":"DespesesProjecte[[#This Row],[Importe total del proyecto]]-I29","v":0}]
[null,null,null,{"$f":"SUM(DespesesProjecte[[#This Row],[Importe imputable a la subvención municipal]],DespesesProjecte[[#This Row],[Importe de la aportación / Cofinanciación de la organización]])","v":0},null,null,null,null,0,null,{"$f":"DespesesProjecte[[#This Row],[Importe imputable a la subvención municipal]]-G30","v":0},{"$f":"DespesesProjecte[[#This Row],[Importe de la aportación / Cofinanciación de la organización]]-H30","v":0},{"$f":"DespesesProjecte[[#This Row],[Importe total del proyecto]]-I30","v":0}]
["D3. Adquisición de materiales y bienes consumibles íntegramente imputables al proyecto ",{"$f":"SUM(B32:B34)","v":0},{"$f":"SUM(C32:C34)","v":0},{"$f":"SUM(DespesesProjecte[[#This Row],[Importe imputable a la subvención municipal]],DespesesProjecte[[#This Row],[Importe de la aportación / Cofinanciación de la organización]])","v":0},null,"D3. Adquisición de materiales y bienes consumibles íntegramente imputables al proyecto",{"$f":"SUM(G32:G34)","v":0},{"$f":"SUM(H32:H34)","v":0},0,null,{"$f":"DespesesProjecte[[#This Row],[Importe imputable a la subvención municipal]]-G31","v":0},{"$f":"DespesesProjecte[[#This Row],[Importe de la aportación / Cofinanciación de la organización]]-H31","v":0},{"$f":"DespesesProjecte[[#This Row],[Importe total del proyecto]]-I31","v":0}]
[null,null,null,{"$f":"SUM(DespesesProjecte[[#This Row],[Importe imputable a la subvención municipal]],DespesesProjecte[[#This Row],[Importe de la aportación / Cofinanciación de la organización]])","v":0},null,null,null,null,0,null,{"$f":"DespesesProjecte[[#This Row],[Importe imputable a la subvención municipal]]-G32","v":0},{"$f":"DespesesProjecte[[#This Row],[Importe de la aportación / Cofinanciación de la organización]]-H32","v":0},{"$f":"DespesesProjecte[[#This Row],[Importe total del proyecto]]-I32","v":0}]
[null,null,null,{"$f":"SUM(DespesesProjecte[[#This Row],[Importe imputable a la subvención municipal]],DespesesProjecte[[#This Row],[Importe de la aportación / Cofinanciación de la organización]])","v":0},null,null,null,null,0,null,{"$f":"DespesesProjecte[[#This Row],[Importe imputable a la subvención municipal]]-G33","v":0},{"$f":"DespesesProjecte[[#This Row],[Importe de la aportación / Cofinanciación de la organización]]-H33","v":0},{"$f":"DespesesProjecte[[#This Row],[Importe total del proyecto]]-I33","v":0}]
[null,null,null,{"$f":"SUM(DespesesProjecte[[#This Row],[Importe imputable a la subvención municipal]],DespesesProjecte[[#This Row],[Importe de la aportación / Cofinanciación de la organización]])","v":0},null,null,null,null,0,null,{"$f":"DespesesProjecte[[#This Row],[Importe imputable a la subvención municipal]]-G34","v":0},{"$f":"DespesesProjecte[[#This Row],[Importe de la aportación / Cofinanciación de la organización]]-H34","v":0},{"$f":"DespesesProjecte[[#This Row],[Importe total del proyecto]]-I34","v":0}]
["D4. Transporte – mensajería imputables al proyecto",{"$f":"SUM(B36:B38)","v":0},{"$f":"SUM(C36:C38)","v":0},{"$f":"DespesesProjecte[[#This Row],[Importe imputable a la subvención municipal]]+DespesesProjecte[[#This Row],[Importe de la aportación / Cofinanciación de la organización]]","v":0},null,"D4. Transporte – mensajería imputables al proyecto",{"$f":"SUM(G36:G38)","v":0},{"$f":"SUM(H36:H38)","v":0},0,null,{"$f":"DespesesProjecte[[#This Row],[Importe imputable a la subvención municipal]]-G35","v":0},{"$f":"DespesesProjecte[[#This Row],[Importe de la aportación / Cofinanciación de la organización]]-H35","v":0},{"$f":"DespesesProjecte[[#This Row],[Importe total del proyecto]]-I35","v":0}]
[null,null,null,{"$f":"SUM(DespesesProjecte[[#This Row],[Importe imputable a la subvención municipal]],DespesesProjecte[[#This Row],[Importe de la aportación / Cofinanciación de la organización]])","v":0},null,null,null,null,0,null,{"$f":"DespesesProjecte[[#This Row],[Importe imputable a la subvención municipal]]-G36","v":0},{"$f":"DespesesProjecte[[#This Row],[Importe de la aportación / Cofinanciación de la organización]]-H36","v":0},{"$f":"DespesesProjecte[[#This Row],[Importe total del proyecto]]-I36","v":0}]
[null,null,null,{"$f":"SUM(DespesesProjecte[[#This Row],[Importe imputable a la subvención municipal]],DespesesProjecte[[#This Row],[Importe de la aportación / Cofinanciación de la organización]])","v":0},null,null,null,null,0,null,{"$f":"DespesesProjecte[[#This Row],[Importe imputable a la subvención municipal]]-G37","v":0},{"$f":"DespesesProjecte[[#This Row],[Importe de la aportación / Cofinanciación de la organización]]-H37","v":0},{"$f":"DespesesProjecte[[#This Row],[Importe total del proyecto]]-I37","v":0}]
[null,null,null,{"$f":"SUM(DespesesProjecte[[#This Row],[Importe imputable a la subvención municipal]],DespesesProjecte[[#This Row],[Importe de la aportación / Cofinanciación de la organización]])","v":0},null,null,null,null,0,null,{"$f":"DespesesProjecte[[#This Row],[Importe imputable a la subvención municipal]]-G38","v":0},{"$f":"DespesesProjecte[[#This Row],[Importe de la aportación / Cofinanciación de la organización]]-H38","v":0},{"$f":"DespesesProjecte[[#This Row],[Importe total del proyecto]]-I38","v":0}]
["D5. Publicidad y propaganda de las actividades directamente vinculadas al proyecto",{"$f":"SUM(B40:B42)","v":0},{"$f":"SUM(C40:C42)","v":0},{"$f":"SUM(DespesesProjecte[[#This Row],[Importe imputable a la subvención municipal]],DespesesProjecte[[#This Row],[Importe de la aportación / Cofinanciación de la organización]])","v":0},null,"D5. Publicidad y propaganda de las actividades directamente vinculadas al proyecto",{"$f":"SUM(G40:G42)","v":0},{"$f":"SUM(H40:H42)","v":0},0,null,{"$f":"DespesesProjecte[[#This Row],[Importe imputable a la subvención municipal]]-G39","v":0},{"$f":"DespesesProjecte[[#This Row],[Importe de la aportación / Cofinanciación de la organización]]-H39","v":0},{"$f":"DespesesProjecte[[#This Row],[Importe total del proyecto]]-I39","v":0}]
[null,null,null,{"$f":"SUM(DespesesProjecte[[#This Row],[Importe imputable a la subvención municipal]],DespesesProjecte[[#This Row],[Importe de la aportación / Cofinanciación de la organización]])","v":0},null,null,null,null,0,null,{"$f":"DespesesProjecte[[#This Row],[Importe imputable a la subvención municipal]]-G40","v":0},{"$f":"DespesesProjecte[[#This Row],[Importe de la aportación / Cofinanciación de la organización]]-H40","v":0},{"$f":"DespesesProjecte[[#This Row],[Importe total del proyecto]]-I40","v":0}]
[null,null,null,{"$f":"SUM(DespesesProjecte[[#This Row],[Importe imputable a la subvención municipal]],DespesesProjecte[[#This Row],[Importe de la aportación / Cofinanciación de la organización]])","v":0},null,null,null,null,0,null,{"$f":"DespesesProjecte[[#This Row],[Importe imputable a la subvención municipal]]-G41","v":0},{"$f":"DespesesProjecte[[#This Row],[Importe de la aportación / Cofinanciación de la organización]]-H41","v":0},{"$f":"DespesesProjecte[[#This Row],[Importe total del proyecto]]-I41","v":0}]
[null,null,null,{"$f":"SUM(DespesesProjecte[[#This Row],[Importe imputable a la subvención municipal]],DespesesProjecte[[#This Row],[Importe de la aportación / Cofinanciación de la organización]])","v":0},null,null,null,null,0,null,{"$f":"DespesesProjecte[[#This Row],[Importe imputable a la subvención municipal]]-G42","v":0},{"$f":"DespesesProjecte[[#This Row],[Importe de la aportación / Cofinanciación de la organización]]-H42","v":0},{"$f":"DespesesProjecte[[#This Row],[Importe total del proyecto]]-I42","v":0}]
["D6. Alojamiento y dietas, del personal contratado y voluntario, vinculados al proyecto",{"$f":"SUM(B44:B46)","v":0},{"$f":"SUM(C44:C46)","v":0},{"$f":"SUM(DespesesProjecte[[#This Row],[Importe imputable a la subvención municipal]],DespesesProjecte[[#This Row],[Importe de la aportación / Cofinanciación de la organización]])","v":0},null,"D6. Alojamiento y dietas, del personal contratado y voluntario, vinculados al proyecto",{"$f":"SUM(G44:G46)","v":0},{"$f":"SUM(H44:H46)","v":0},0,null,{"$f":"DespesesProjecte[[#This Row],[Importe imputable a la subvención municipal]]-G43","v":0},{"$f":"DespesesProjecte[[#This Row],[Importe de la aportación / Cofinanciación de la organización]]-H43","v":0},{"$f":"DespesesProjecte[[#This Row],[Importe total del proyecto]]-I43","v":0}]
[null,null,null,{"$f":"SUM(DespesesProjecte[[#This Row],[Importe imputable a la subvención municipal]],DespesesProjecte[[#This Row],[Importe de la aportación / Cofinanciación de la organización]])","v":0},null,null,null,null,0,null,{"$f":"DespesesProjecte[[#This Row],[Importe imputable a la subvención municipal]]-G44","v":0},{"$f":"DespesesProjecte[[#This Row],[Importe de la aportación / Cofinanciación de la organización]]-H44","v":0},{"$f":"DespesesProjecte[[#This Row],[Importe total del proyecto]]-I44","v":0}]
[null,null,null,{"$f":"SUM(DespesesProjecte[[#This Row],[Importe imputable a la subvención municipal]],DespesesProjecte[[#This Row],[Importe de la aportación / Cofinanciación de la organización]])","v":0},null,null,null,null,0,null,{"$f":"DespesesProjecte[[#This Row],[Importe imputable a la subvención municipal]]-G45","v":0},{"$f":"DespesesProjecte[[#This Row],[Importe de la aportación / Cofinanciación de la organización]]-H45","v":0},{"$f":"DespesesProjecte[[#This Row],[Importe total del proyecto]]-I45","v":0}]
[null,null,null,{"$f":"SUM(DespesesProjecte[[#This Row],[Importe imputable a la subvención municipal]],DespesesProjecte[[#This Row],[Importe de la aportación / Cofinanciación de la organización]])","v":0},null,null,null,null,0,null,{"$f":"DespesesProjecte[[#This Row],[Importe imputable a la subvención municipal]]-G46","v":0},{"$f":"DespesesProjecte[[#This Row],[Importe de la aportación / Cofinanciación de la organización]]-H46","v":0},{"$f":"DespesesProjecte[[#This Row],[Importe total del proyecto]]-I46","v":0}]
["D7. Ayudas al transporte para los/las participantes de los proyectos en caso de que sea necesario de manera justificada",{"$f":"SUM(B48:B50)","v":0},{"$f":"SUM(C48:C50)","v":0},{"$f":"SUM(DespesesProjecte[[#This Row],[Importe imputable a la subvención municipal]],DespesesProjecte[[#This Row],[Importe de la aportación / Cofinanciación de la organización]])","v":0},null,"D7. Ayudas al transporte para los/las participantes de los proyectos en caso de que sea necesario de manera justificada",{"$f":"SUM(G48:G50)","v":0},{"$f":"SUM(H48:H50)","v":0},0,null,{"$f":"DespesesProjecte[[#This Row],[Importe imputable a la subvención municipal]]-G47","v":0},{"$f":"DespesesProjecte[[#This Row],[Importe de la aportación / Cofinanciación de la organización]]-H47","v":0},{"$f":"DespesesProjecte[[#This Row],[Importe total del proyecto]]-I47","v":0}]
[null,null,null,{"$f":"SUM(DespesesProjecte[[#This Row],[Importe imputable a la subvención municipal]],DespesesProjecte[[#This Row],[Importe de la aportación / Cofinanciación de la organización]])","v":0},null,null,null,null,0,null,{"$f":"DespesesProjecte[[#This Row],[Importe imputable a la subvención municipal]]-G48","v":0},{"$f":"DespesesProjecte[[#This Row],[Importe de la aportación / Cofinanciación de la organización]]-H48","v":0},{"$f":"DespesesProjecte[[#This Row],[Importe total del proyecto]]-I48","v":0}]
[null,null,null,{"$f":"SUM(DespesesProjecte[[#This Row],[Importe imputable a la subvención municipal]],DespesesProjecte[[#This Row],[Importe de la aportación / Cofinanciación de la organización]])","v":0},null,null,null,null,0,null,{"$f":"DespesesProjecte[[#This Row],[Importe imputable a la subvención municipal]]-G49","v":0},{"$f":"DespesesProjecte[[#This Row],[Importe de la aportación / Cofinanciación de la organización]]-H49","v":0},{"$f":"DespesesProjecte[[#This Row],[Importe total del proyecto]]-I49","v":0}]
[null,null,null,{"$f":"SUM(DespesesProjecte[[#This Row],[Importe imputable a la subvención municipal]],DespesesProjecte[[#This Row],[Importe de la aportación / Cofinanciación de la organización]])","v":0},null,null,null,null,0,null,{"$f":"DespesesProjecte[[#This Row],[Importe imputable a la subvención municipal]]-G50","v":0},{"$f":"DespesesProjecte[[#This Row],[Importe de la aportación / Cofinanciación de la organización]]-H50","v":0},{"$f":"DespesesProjecte[[#This Row],[Importe total del proyecto]]-I50","v":0}]
["D8. Viajes y desplazamientos imputables a las actividades del proyecto",{"$f":"SUM(B52:B54)","v":0},{"$f":"SUM(C52:C54)","v":0},{"$f":"DespesesProjecte[[#This Row],[Importe imputable a la subvención municipal]]+DespesesProjecte[[#This Row],[Importe de la aportación / Cofinanciación de la organización]]","v":0},null,"D8. Viajes y desplazamientos imputables a las actividades del proyecto",{"$f":"SUM(G52:G54)","v":0},{"$f":"SUM(H52:H54)","v":0},0,null,{"$f":"DespesesProjecte[[#This Row],[Importe imputable a la subvención municipal]]-G51","v":0},{"$f":"DespesesProjecte[[#This Row],[Importe de la aportación / Cofinanciación de la organización]]-H51","v":0},{"$f":"DespesesProjecte[[#This Row],[Importe total del proyecto]]-I51","v":0}]
[null,null,null,{"$f":"SUM(DespesesProjecte[[#This Row],[Importe imputable a la subvención municipal]],DespesesProjecte[[#This Row],[Importe de la aportación / Cofinanciación de la organización]])","v":0},null,null,null,null,0,null,{"$f":"DespesesProjecte[[#This Row],[Importe imputable a la subvención municipal]]-G52","v":0},{"$f":"DespesesProjecte[[#This Row],[Importe de la aportación / Cofinanciación de la organización]]-H52","v":0},{"$f":"DespesesProjecte[[#This Row],[Importe total del proyecto]]-I52","v":0}]
[null,null,null,{"$f":"SUM(DespesesProjecte[[#This Row],[Importe imputable a la subvención municipal]],DespesesProjecte[[#This Row],[Importe de la aportación / Cofinanciación de la organización]])","v":0},null,null,null,null,0,null,{"$f":"DespesesProjecte[[#This Row],[Importe imputable a la subvención municipal]]-G53","v":0},{"$f":"DespesesProjecte[[#This Row],[Importe de la aportación / Cofinanciación de la organización]]-H53","v":0},{"$f":"DespesesProjecte[[#This Row],[Importe total del proyecto]]-I53","v":0}]
[null,null,null,{"$f":"SUM(DespesesProjecte[[#This Row],[Importe imputable a la subvención municipal]],DespesesProjecte[[#This Row],[Importe de la aportación / Cofinanciación de la organización]])","v":0},null,null,null,null,0,null,{"$f":"DespesesProjecte[[#This Row],[Importe imputable a la subvención municipal]]-G54","v":0},{"$f":"DespesesProjecte[[#This Row],[Importe de la aportación / Cofinanciación de la organización]]-H54","v":0},{"$f":"DespesesProjecte[[#This Row],[Importe total del proyecto]]-I54","v":0}]
["D9.Tributos, cuando sean abonados directamente por la persona jurídica o física beneficiaria",{"$f":"SUM(B56:B58)","v":0},{"$f":"SUM(C56:C58)","v":0},{"$f":"DespesesProjecte[[#This Row],[Importe imputable a la subvención municipal]]+DespesesProjecte[[#This Row],[Importe de la aportación / Cofinanciación de la organización]]","v":0},null,"D9.Tributos, cuando sean abonados directamente por la persona jurídica o física beneficiaria",{"$f":"SUM(G56:G58)","v":0},{"$f":"SUM(H56:H58)","v":0},0,null,{"$f":"DespesesProjecte[[#This Row],[Importe imputable a la subvención municipal]]-G55","v":0},{"$f":"DespesesProjecte[[#This Row],[Importe de la aportación / Cofinanciación de la organización]]-H55","v":0},{"$f":"DespesesProjecte[[#This Row],[Importe total del proyecto]]-I55","v":0}]
[null,null,null,{"$f":"SUM(DespesesProjecte[[#This Row],[Importe imputable a la subvención municipal]],DespesesProjecte[[#This Row],[Importe de la aportación / Cofinanciación de la organización]])","v":0},null,null,null,null,0,null,{"$f":"DespesesProjecte[[#This Row],[Importe imputable a la subvención municipal]]-G56","v":0},{"$f":"DespesesProjecte[[#This Row],[Importe de la aportación / Cofinanciación de la organización]]-H56","v":0},{"$f":"DespesesProjecte[[#This Row],[Importe total del proyecto]]-I56","v":0}]
[null,null,null,{"$f":"SUM(DespesesProjecte[[#This Row],[Importe imputable a la subvención municipal]],DespesesProjecte[[#This Row],[Importe de la aportación / Cofinanciación de la organización]])","v":0},null,null,null,null,0,null,{"$f":"DespesesProjecte[[#This Row],[Importe imputable a la subvención municipal]]-G57","v":0},{"$f":"DespesesProjecte[[#This Row],[Importe de la aportación / Cofinanciación de la organización]]-H57","v":0},{"$f":"DespesesProjecte[[#This Row],[Importe total del proyecto]]-I57","v":0}]
[null,null,null,{"$f":"SUM(DespesesProjecte[[#This Row],[Importe imputable a la subvención municipal]],DespesesProjecte[[#This Row],[Importe de la aportación / Cofinanciación de la organización]])","v":0},null,null,null,null,0,null,{"$f":"DespesesProjecte[[#This Row],[Importe imputable a la subvención municipal]]-G58","v":0},{"$f":"DespesesProjecte[[#This Row],[Importe de la aportación / Cofinanciación de la organización]]-H58","v":0},{"$f":"DespesesProjecte[[#This Row],[Importe total del proyecto]]-I58","v":0}]
["D10. Gastos del informe de auditoría (máximo 1.500€ subvención)",{"$f":"SUM(B60:B62)","v":0},{"$f":"SUM(C60:C66)","v":0},{"$f":"DespesesProjecte[[#This Row],[Importe imputable a la subvención municipal]]+DespesesProjecte[[#This Row],[Importe de la aportación / Cofinanciación de la organización]]","v":0},null,"D10. Gastos del informe de auditoría (máximo 1.500€ subvención)",{"$f":"SUM(G60:G62)","v":0},{"$f":"SUM(H60:H66)","v":0},0,{"$f":"+IF(G59>1500,\"ALERTA: Màxim 1.500€ de l'import imputable a la subvenció municipal\", \" \")","v":" "},{"$f":"DespesesProjecte[[#This Row],[Importe imputable a la subvención municipal]]-G59","v":0},{"$f":"DespesesProjecte[[#This Row],[Importe de la aportación / Cofinanciación de la organización]]-H59","v":0},{"$f":"DespesesProjecte[[#This Row],[Importe total del proyecto]]-I59","v":0}]
[null,null,null,{"$f":"SUM(DespesesProjecte[[#This Row],[Importe imputable a la subvención municipal]],DespesesProjecte[[#This Row],[Importe de la aportación / Cofinanciación de la organización]])","v":0},null,null,null,null,0,null,{"$f":"DespesesProjecte[[#This Row],[Importe imputable a la subvención municipal]]-G60","v":0},{"$f":"DespesesProjecte[[#This Row],[Importe de la aportación / Cofinanciación de la organización]]-H60","v":0},{"$f":"DespesesProjecte[[#This Row],[Importe total del proyecto]]-I60","v":0}]
[null,null,null,{"$f":"SUM(DespesesProjecte[[#This Row],[Importe imputable a la subvención municipal]],DespesesProjecte[[#This Row],[Importe de la aportación / Cofinanciación de la organización]])","v":0},null,null,null,null,0,null,{"$f":"DespesesProjecte[[#This Row],[Importe imputable a la subvención municipal]]-G61","v":0},{"$f":"DespesesProjecte[[#This Row],[Importe de la aportación / Cofinanciación de la organización]]-H61","v":0},{"$f":"DespesesProjecte[[#This Row],[Importe total del proyecto]]-I61","v":0}]
[null,null,null,{"$f":"SUM(DespesesProjecte[[#This Row],[Importe imputable a la subvención municipal]],DespesesProjecte[[#This Row],[Importe de la aportación / Cofinanciación de la organización]])","v":0},null,null,null,null,0,null,{"$f":"DespesesProjecte[[#This Row],[Importe imputable a la subvención municipal]]-G62","v":0},{"$f":"DespesesProjecte[[#This Row],[Importe de la aportación / Cofinanciación de la organización]]-H62","v":0},{"$f":"DespesesProjecte[[#This Row],[Importe total del proyecto]]-I62","v":0}]
["D11. Otros gastos que de manera justificada y por la tipología del proyecto puedan imputarse directamente al proyecto",{"$f":"SUM(B64:B66)","v":0},{"$f":"SUM(C64:C66)","v":0},{"$f":"DespesesProjecte[[#This Row],[Importe imputable a la subvención municipal]]+DespesesProjecte[[#This Row],[Importe de la aportación / Cofinanciación de la organización]]","v":0},null,"D11. Otros gastos que de manera justificada y por la tipología del proyecto puedan imputarse directamente al proyecto",{"$f":"SUM(G64:G66)","v":0},{"$f":"SUM(H64:H66)","v":0},0,null,{"$f":"DespesesProjecte[[#This Row],[Importe imputable a la subvención municipal]]-G63","v":0},{"$f":"DespesesProjecte[[#This Row],[Importe de la aportación / Cofinanciación de la organización]]-H63","v":0},{"$f":"DespesesProjecte[[#This Row],[Importe total del proyecto]]-I63","v":0}]
[null,null,null,{"$f":"SUM(DespesesProjecte[[#This Row],[Importe imputable a la subvención municipal]],DespesesProjecte[[#This Row],[Importe de la aportación / Cofinanciación de la organización]])","v":0},null,null,null,null,0,null,{"$f":"DespesesProjecte[[#This Row],[Importe imputable a la subvención municipal]]-G64","v":0},{"$f":"DespesesProjecte[[#This Row],[Importe de la aportación / Cofinanciación de la organización]]-H64","v":0},{"$f":"DespesesProjecte[[#This Row],[Importe total del proyecto]]-I64","v":0}]
[null,null,null,{"$f":"SUM(DespesesProjecte[[#This Row],[Importe imputable a la subvención municipal]],DespesesProjecte[[#This Row],[Importe de la aportación / Cofinanciación de la organización]])","v":0},null,null,null,null,0,null,{"$f":"DespesesProjecte[[#This Row],[Importe imputable a la subvención municipal]]-G65","v":0},{"$f":"DespesesProjecte[[#This Row],[Importe de la aportación / Cofinanciación de la organización]]-H65","v":0},{"$f":"DespesesProjecte[[#This Row],[Importe total del proyecto]]-I65","v":0}]
[null,null,null,{"$f":"SUM(DespesesProjecte[[#This Row],[Importe imputable a la subvención municipal]],DespesesProjecte[[#This Row],[Importe de la aportación / Cofinanciación de la organización]])","v":0},null,null,null,null,0,null,{"$f":"DespesesProjecte[[#This Row],[Importe imputable a la subvención municipal]]-G66","v":0},{"$f":"DespesesProjecte[[#This Row],[Importe de la aportación / Cofinanciación de la organización]]-H66","v":0},{"$f":"DespesesProjecte[[#This Row],[Importe total del proyecto]]-I66","v":0}]
["TOTAL DE OTROS GASTOS DIRECTOS",{"$f":"B27+B31+B35+B39+B43+B47+B51+B55+B59+B63","v":0},{"$f":"C27+C31+C35+C39+C43+C47+C51+C55+C59+C63","v":0},{"$f":"D27+D31+D35+D39+D43+D47+D51+D55+D59+D63","v":0},null,"TOTAL DE OTROS GASTOS DIRECTOS",{"$f":"G27+G31+G35+G39+G43+G47+G51+G55+G59+G63","v":0},{"$f":"H27+H31+H35+H39+H43+H47+H51+H55+H59+H63","v":0},{"$f":"I27+I31+I35+I39+I43+I47+I51+I55+I59+I63","v":0},null,{"$f":"DespesesProjecte[[#This Row],[Importe imputable a la subvención municipal]]-G67","v":0},{"$f":"DespesesProjecte[[#This Row],[Importe de la aportación / Cofinanciación de la organización]]-H67","v":0},{"$f":"DespesesProjecte[[#This Row],[Importe total del proyecto]]-I67","v":0}]
["TOTAL GASTOS DIRECTOS (aquellos que se identifican directamente con el proyecto subvencionable)",{"$f":"B26+B67","v":0},{"$f":"C26+C67","v":0},{"$f":"D26+D67","v":0},null,"TOTAL GASTOS DIRECTOS (aquellos que se identifican directamente con el proyecto subvencionable)",{"$f":"G26+G67","v":0},{"$f":"H26+H67","v":0},{"$f":"I26+I67","v":0},null,{"$f":"DespesesProjecte[[#This Row],[Importe imputable a la subvención municipal]]-G68","v":0},{"$f":"DespesesProjecte[[#This Row],[Importe de la aportación / Cofinanciación de la organización]]-H68","v":0},{"$f":"DespesesProjecte[[#This Row],[Importe total del proyecto]]-I68","v":0}]
["I1. Personal propio vinculado indirectamente (nóminas y seguridad social) ",{"$f":"SUM(B70:B72)","v":0},{"$f":"SUM(C70:C72)","v":0},{"$f":"SUM(DespesesProjecte[[#This Row],[Importe imputable a la subvención municipal]],DespesesProjecte[[#This Row],[Importe de la aportación / Cofinanciación de la organización]])","v":0},null,"I1. Personal propio vinculado indirectamente (nóminas y seguridad social)  ",{"$f":"SUM(G70:G72)","v":0},{"$f":"SUM(H70:H72)","v":0},{"$f":"+G69+H69","v":0},null,{"$f":"DespesesProjecte[[#This Row],[Importe imputable a la subvención municipal]]-G69","v":0},{"$f":"DespesesProjecte[[#This Row],[Importe de la aportación / Cofinanciación de la organización]]-H69","v":0},{"$f":"DespesesProjecte[[#This Row],[Importe total del proyecto]]-I69","v":0}]
[null,null,null,{"$f":"SUM(DespesesProjecte[[#This Row],[Importe imputable a la subvención municipal]],DespesesProjecte[[#This Row],[Importe de la aportación / Cofinanciación de la organización]])","v":0},null,null,null,null,{"$f":"+G70+H70","v":0},null,{"$f":"DespesesProjecte[[#This Row],[Importe imputable a la subvención municipal]]-G70","v":0},{"$f":"DespesesProjecte[[#This Row],[Importe de la aportación / Cofinanciación de la organización]]-H70","v":0},{"$f":"DespesesProjecte[[#This Row],[Importe total del proyecto]]-I70","v":0}]
[null,null,null,{"$f":"SUM(DespesesProjecte[[#This Row],[Importe imputable a la subvención municipal]],DespesesProjecte[[#This Row],[Importe de la aportación / Cofinanciación de la organización]])","v":0},null,null,null,null,0,null,{"$f":"DespesesProjecte[[#This Row],[Importe imputable a la subvención municipal]]-G71","v":0},{"$f":"DespesesProjecte[[#This Row],[Importe de la aportación / Cofinanciación de la organización]]-H71","v":0},{"$f":"DespesesProjecte[[#This Row],[Importe total del proyecto]]-I71","v":0}]
[null,null,null,{"$f":"SUM(DespesesProjecte[[#This Row],[Importe imputable a la subvención municipal]],DespesesProjecte[[#This Row],[Importe de la aportación / Cofinanciación de la organización]])","v":0},null,null,null,null,0,null,{"$f":"DespesesProjecte[[#This Row],[Importe imputable a la subvención municipal]]-G72","v":0},{"$f":"DespesesProjecte[[#This Row],[Importe de la aportación / Cofinanciación de la organización]]-H72","v":0},{"$f":"DespesesProjecte[[#This Row],[Importe total del proyecto]]-I72","v":0}]
["I2. Seguros",{"$f":"SUM(B74:B76)","v":0},{"$f":"SUM(C74:C76)","v":0},{"$f":"SUM(DespesesProjecte[[#This Row],[Importe imputable a la subvención municipal]],DespesesProjecte[[#This Row],[Importe de la aportación / Cofinanciación de la organización]])","v":0},null,"I2. Seguros",{"$f":"SUM(G74:G76)","v":0},{"$f":"SUM(H74:H76)","v":0},0,null,{"$f":"DespesesProjecte[[#This Row],[Importe imputable a la subvención municipal]]-G73","v":0},{"$f":"DespesesProjecte[[#This Row],[Importe de la aportación / Cofinanciación de la organización]]-H73","v":0},{"$f":"DespesesProjecte[[#This Row],[Importe total del proyecto]]-I73","v":0}]
[null,null,null,{"$f":"SUM(DespesesProjecte[[#This Row],[Importe imputable a la subvención municipal]],DespesesProjecte[[#This Row],[Importe de la aportación / Cofinanciación de la organización]])","v":0},null,null,null,null,0,null,{"$f":"DespesesProjecte[[#This Row],[Importe imputable a la subvención municipal]]-G74","v":0},{"$f":"DespesesProjecte[[#This Row],[Importe de la aportación / Cofinanciación de la organización]]-H74","v":0},{"$f":"DespesesProjecte[[#This Row],[Importe total del proyecto]]-I74","v":0}]
[null,null,null,{"$f":"SUM(DespesesProjecte[[#This Row],[Importe imputable a la subvención municipal]],DespesesProjecte[[#This Row],[Importe de la aportación / Cofinanciación de la organización]])","v":0},null,null,null,null,0,null,{"$f":"DespesesProjecte[[#This Row],[Importe imputable a la subvención municipal]]-G75","v":0},{"$f":"DespesesProjecte[[#This Row],[Importe de la aportación / Cofinanciación de la organización]]-H75","v":0},{"$f":"DespesesProjecte[[#This Row],[Importe total del proyecto]]-I75","v":0}]
[null,null,null,{"$f":"SUM(DespesesProjecte[[#This Row],[Importe imputable a la subvención municipal]],DespesesProjecte[[#This Row],[Importe de la aportación / Cofinanciación de la organización]])","v":0},null,null,null,null,0,null,{"$f":"DespesesProjecte[[#This Row],[Importe imputable a la subvención municipal]]-G76","v":0},{"$f":"DespesesProjecte[[#This Row],[Importe de la aportación / Cofinanciación de la organización]]-H76","v":0},{"$f":"DespesesProjecte[[#This Row],[Importe total del proyecto]]-I76","v":0}]
["I3. Amortización",{"$f":"SUM(B78:B80)","v":0},{"$f":"SUM(C78:C80)","v":0},{"$f":"SUM(DespesesProjecte[[#This Row],[Importe imputable a la subvención municipal]],DespesesProjecte[[#This Row],[Importe de la aportación / Cofinanciación de la organización]])","v":0},null,"I3. Amortización",{"$f":"SUM(G78:G80)","v":0},{"$f":"SUM(H78:H80)","v":0},0,null,{"$f":"DespesesProjecte[[#This Row],[Importe imputable a la subvención municipal]]-G77","v":0},{"$f":"DespesesProjecte[[#This Row],[Importe de la aportación / Cofinanciación de la organización]]-H77","v":0},{"$f":"DespesesProjecte[[#This Row],[Importe total del proyecto]]-I77","v":0}]
[null,null,null,{"$f":"SUM(DespesesProjecte[[#This Row],[Importe imputable a la subvención municipal]],DespesesProjecte[[#This Row],[Importe de la aportación / Cofinanciación de la organización]])","v":0},null,null,null,null,0,null,{"$f":"DespesesProjecte[[#This Row],[Importe imputable a la subvención municipal]]-G78","v":0},{"$f":"DespesesProjecte[[#This Row],[Importe de la aportación / Cofinanciación de la organización]]-H78","v":0},{"$f":"DespesesProjecte[[#This Row],[Importe total del proyecto]]-I78","v":0}]
[null,null,null,{"$f":"SUM(DespesesProjecte[[#This Row],[Importe imputable a la subvención municipal]],DespesesProjecte[[#This Row],[Importe de la aportación / Cofinanciación de la organización]])","v":0},null,null,null,null,0,null,{"$f":"DespesesProjecte[[#This Row],[Importe imputable a la subvención municipal]]-G79","v":0},{"$f":"DespesesProjecte[[#This Row],[Importe de la aportación / Cofinanciación de la organización]]-H79","v":0},{"$f":"DespesesProjecte[[#This Row],[Importe total del proyecto]]-I79","v":0}]
[null,null,null,{"$f":"SUM(DespesesProjecte[[#This Row],[Importe imputable a la subvención municipal]],DespesesProjecte[[#This Row],[Importe de la aportación / Cofinanciación de la organización]])","v":0},null,null,null,null,0,null,{"$f":"DespesesProjecte[[#This Row],[Importe imputable a la subvención municipal]]-G80","v":0},{"$f":"DespesesProjecte[[#This Row],[Importe de la aportación / Cofinanciación de la organización]]-H80","v":0},{"$f":"DespesesProjecte[[#This Row],[Importe total del proyecto]]-I80","v":0}]
["I4. Alquiler de bienes inmuebles",{"$f":"SUM(B82:B84)","v":0},{"$f":"SUM(C82:C84)","v":0},{"$f":"SUM(DespesesProjecte[[#This Row],[Importe imputable a la subvención municipal]],DespesesProjecte[[#This Row],[Importe de la aportación / Cofinanciación de la organización]])","v":0},null,"I4. Alquiler de bienes inmuebles",{"$f":"SUM(G82:G84)","v":0},{"$f":"SUM(H82:H84)","v":0},0,null,{"$f":"DespesesProjecte[[#This Row],[Importe imputable a la subvención municipal]]-G81","v":0},{"$f":"DespesesProjecte[[#This Row],[Importe de la aportación / Cofinanciación de la organización]]-H81","v":0},{"$f":"DespesesProjecte[[#This Row],[Importe total del proyecto]]-I81","v":0}]
[null,null,null,{"$f":"SUM(DespesesProjecte[[#This Row],[Importe imputable a la subvención municipal]],DespesesProjecte[[#This Row],[Importe de la aportación / Cofinanciación de la organización]])","v":0},null,null,null,null,0,null,{"$f":"DespesesProjecte[[#This Row],[Importe imputable a la subvención municipal]]-G82","v":0},{"$f":"DespesesProjecte[[#This Row],[Importe de la aportación / Cofinanciación de la organización]]-H82","v":0},{"$f":"DespesesProjecte[[#This Row],[Importe total del proyecto]]-I82","v":0}]
[null,null,null,{"$f":"SUM(DespesesProjecte[[#This Row],[Importe imputable a la subvención municipal]],DespesesProjecte[[#This Row],[Importe de la aportación / Cofinanciación de la organización]])","v":0},null,null,null,null,0,null,{"$f":"DespesesProjecte[[#This Row],[Importe imputable a la subvención municipal]]-G83","v":0},{"$f":"DespesesProjecte[[#This Row],[Importe de la aportación / Cofinanciación de la organización]]-H83","v":0},{"$f":"DespesesProjecte[[#This Row],[Importe total del proyecto]]-I83","v":0}]
[null,null,null,{"$f":"SUM(DespesesProjecte[[#This Row],[Importe imputable a la subvención municipal]],DespesesProjecte[[#This Row],[Importe de la aportación / Cofinanciación de la organización]])","v":0},null,null,null,null,0,null,{"$f":"DespesesProjecte[[#This Row],[Importe imputable a la subvención municipal]]-G84","v":0},{"$f":"DespesesProjecte[[#This Row],[Importe de la aportación / Cofinanciación de la organización]]-H84","v":0},{"$f":"DespesesProjecte[[#This Row],[Importe total del proyecto]]-I84","v":0}]
["I5. Adquisición de materiales y bienes consumibles parcialmente imputables al proyecto",{"$f":"SUM(B86:B88)","v":0},{"$f":"SUM(C86:C88)","v":0},{"$f":"SUM(DespesesProjecte[[#This Row],[Importe imputable a la subvención municipal]],DespesesProjecte[[#This Row],[Importe de la aportación / Cofinanciación de la organización]])","v":0},null,"I5. Adquisición de materiales y bienes consumibles parcialmente imputables al proyecto",{"$f":"SUM(G86:G88)","v":0},{"$f":"SUM(H86:H88)","v":0},0,null,{"$f":"DespesesProjecte[[#This Row],[Importe imputable a la subvención municipal]]-G85","v":0},{"$f":"DespesesProjecte[[#This Row],[Importe de la aportación / Cofinanciación de la organización]]-H85","v":0},{"$f":"DespesesProjecte[[#This Row],[Importe total del proyecto]]-I85","v":0}]
[null,null,null,{"$f":"SUM(DespesesProjecte[[#This Row],[Importe imputable a la subvención municipal]],DespesesProjecte[[#This Row],[Importe de la aportación / Cofinanciación de la organización]])","v":0},null,null,null,null,0,null,{"$f":"DespesesProjecte[[#This Row],[Importe imputable a la subvención municipal]]-G86","v":0},{"$f":"DespesesProjecte[[#This Row],[Importe de la aportación / Cofinanciación de la organización]]-H86","v":0},{"$f":"DespesesProjecte[[#This Row],[Importe total del proyecto]]-I86","v":0}]
[null,null,null,{"$f":"SUM(DespesesProjecte[[#This Row],[Importe imputable a la subvención municipal]],DespesesProjecte[[#This Row],[Importe de la aportación / Cofinanciación de la organización]])","v":0},null,null,null,null,0,null,{"$f":"DespesesProjecte[[#This Row],[Importe imputable a la subvención municipal]]-G87","v":0},{"$f":"DespesesProjecte[[#This Row],[Importe de la aportación / Cofinanciación de la organización]]-H87","v":0},{"$f":"DespesesProjecte[[#This Row],[Importe total del proyecto]]-I87","v":0}]
[null,null,null,{"$f":"SUM(DespesesProjecte[[#This Row],[Importe imputable a la subvención municipal]],DespesesProjecte[[#This Row],[Importe de la aportación / Cofinanciación de la organización]])","v":0},null,null,null,null,0,null,{"$f":"DespesesProjecte[[#This Row],[Importe imputable a la subvención municipal]]-G88","v":0},{"$f":"DespesesProjecte[[#This Row],[Importe de la aportación / Cofinanciación de la organización]]-H88","v":0},{"$f":"DespesesProjecte[[#This Row],[Importe total del proyecto]]-I88","v":0}]
["I6. Mantenimiento de edificios y/o instalaciones",{"$f":"SUM(B90:B92)","v":0},{"$f":"SUM(C90:C92)","v":0},{"$f":"SUM(DespesesProjecte[[#This Row],[Importe imputable a la subvención municipal]],DespesesProjecte[[#This Row],[Importe de la aportación / Cofinanciación de la organización]])","v":0},null,"I6. Mantenimiento de edificios y/o instalaciones",{"$f":"SUM(G90:G92)","v":0},{"$f":"SUM(H90:H92)","v":0},0,null,{"$f":"DespesesProjecte[[#This Row],[Importe imputable a la subvención municipal]]-G89","v":0},{"$f":"DespesesProjecte[[#This Row],[Importe de la aportación / Cofinanciación de la organización]]-H89","v":0},{"$f":"DespesesProjecte[[#This Row],[Importe total del proyecto]]-I89","v":0}]
[null,null,null,{"$f":"SUM(DespesesProjecte[[#This Row],[Importe imputable a la subvención municipal]],DespesesProjecte[[#This Row],[Importe de la aportación / Cofinanciación de la organización]])","v":0},null,null,null,null,0,null,{"$f":"DespesesProjecte[[#This Row],[Importe imputable a la subvención municipal]]-G90","v":0},{"$f":"DespesesProjecte[[#This Row],[Importe de la aportación / Cofinanciación de la organización]]-H90","v":0},{"$f":"DespesesProjecte[[#This Row],[Importe total del proyecto]]-I90","v":0}]
[null,null,null,{"$f":"SUM(DespesesProjecte[[#This Row],[Importe imputable a la subvención municipal]],DespesesProjecte[[#This Row],[Importe de la aportación / Cofinanciación de la organización]])","v":0},null,null,null,null,0,null,{"$f":"DespesesProjecte[[#This Row],[Importe imputable a la subvención municipal]]-G91","v":0},{"$f":"DespesesProjecte[[#This Row],[Importe de la aportación / Cofinanciación de la organización]]-H91","v":0},{"$f":"DespesesProjecte[[#This Row],[Importe total del proyecto]]-I91","v":0}]
[null,null,null,{"$f":"SUM(DespesesProjecte[[#This Row],[Importe imputable a la subvención municipal]],DespesesProjecte[[#This Row],[Importe de la aportación / Cofinanciación de la organización]])","v":0},null,null,null,null,0,null,{"$f":"DespesesProjecte[[#This Row],[Importe imputable a la subvención municipal]]-G92","v":0},{"$f":"DespesesProjecte[[#This Row],[Importe de la aportación / Cofinanciación de la organización]]-H92","v":0},{"$f":"DespesesProjecte[[#This Row],[Importe total del proyecto]]-I92","v":0}]
["I7. Comunicaciones (teléfono, correos, conexión a internet)",{"$f":"SUM(B94:B96)","v":0},{"$f":"SUM(C94:C96)","v":0},{"$f":"SUM(DespesesProjecte[[#This Row],[Importe imputable a la subvención municipal]],DespesesProjecte[[#This Row],[Importe de la aportación / Cofinanciación de la organización]])","v":0},null,"I7. Comunicaciones (teléfono, correos, conexión a internet)",{"$f":"SUM(G94:G96)","v":0},{"$f":"SUM(H94:H96)","v":0},0,null,{"$f":"DespesesProjecte[[#This Row],[Importe imputable a la subvención municipal]]-G93","v":0},{"$f":"DespesesProjecte[[#This Row],[Importe de la aportación / Cofinanciación de la organización]]-H93","v":0},{"$f":"DespesesProjecte[[#This Row],[Importe total del proyecto]]-I93","v":0}]
[null,null,null,{"$f":"SUM(DespesesProjecte[[#This Row],[Importe imputable a la subvención municipal]],DespesesProjecte[[#This Row],[Importe de la aportación / Cofinanciación de la organización]])","v":0},null,null,null,null,0,null,{"$f":"DespesesProjecte[[#This Row],[Importe imputable a la subvención municipal]]-G94","v":0},{"$f":"DespesesProjecte[[#This Row],[Importe de la aportación / Cofinanciación de la organización]]-H94","v":0},{"$f":"DespesesProjecte[[#This Row],[Importe total del proyecto]]-I94","v":0}]
[null,null,null,{"$f":"SUM(DespesesProjecte[[#This Row],[Importe imputable a la subvención municipal]],DespesesProjecte[[#This Row],[Importe de la aportación / Cofinanciación de la organización]])","v":0},null,null,null,null,0,null,{"$f":"DespesesProjecte[[#This Row],[Importe imputable a la subvención municipal]]-G95","v":0},{"$f":"DespesesProjecte[[#This Row],[Importe de la aportación / Cofinanciación de la organización]]-H95","v":0},{"$f":"DespesesProjecte[[#This Row],[Importe total del proyecto]]-I95","v":0}]
[null,null,null,{"$f":"SUM(DespesesProjecte[[#This Row],[Importe imputable a la subvención municipal]],DespesesProjecte[[#This Row],[Importe de la aportación / Cofinanciación de la organización]])","v":0},null,null,null,null,0,null,{"$f":"DespesesProjecte[[#This Row],[Importe imputable a la subvención municipal]]-G96","v":0},{"$f":"DespesesProjecte[[#This Row],[Importe de la aportación / Cofinanciación de la organización]]-H96","v":0},{"$f":"DespesesProjecte[[#This Row],[Importe total del proyecto]]-I96","v":0}]
["I8. Gastos financieros",{"$f":"SUM(B98:B100)","v":0},{"$f":"SUM(C98:C100)","v":0},{"$f":"SUM(DespesesProjecte[[#This Row],[Importe imputable a la subvención municipal]],DespesesProjecte[[#This Row],[Importe de la aportación / Cofinanciación de la organización]])","v":0},null,"I8. Gastos financieros",{"$f":"SUM(G98:G100)","v":0},{"$f":"SUM(H98:H100)","v":0},0,null,{"$f":"DespesesProjecte[[#This Row],[Importe imputable a la subvención municipal]]-G97","v":0},{"$f":"DespesesProjecte[[#This Row],[Importe de la aportación / Cofinanciación de la organización]]-H97","v":0},{"$f":"DespesesProjecte[[#This Row],[Importe total del proyecto]]-I97","v":0}]
[null,null,null,{"$f":"SUM(DespesesProjecte[[#This Row],[Importe imputable a la subvención municipal]],DespesesProjecte[[#This Row],[Importe de la aportación / Cofinanciación de la organización]])","v":0},null,null,null,null,0,null,{"$f":"DespesesProjecte[[#This Row],[Importe imputable a la subvención municipal]]-G98","v":0},{"$f":"DespesesProjecte[[#This Row],[Importe de la aportación / Cofinanciación de la organización]]-H98","v":0},{"$f":"DespesesProjecte[[#This Row],[Importe total del proyecto]]-I98","v":0}]
[null,null,null,{"$f":"SUM(DespesesProjecte[[#This Row],[Importe imputable a la subvención municipal]],DespesesProjecte[[#This Row],[Importe de la aportación / Cofinanciación de la organización]])","v":0},null,null,null,null,0,null,{"$f":"DespesesProjecte[[#This Row],[Importe imputable a la subvención municipal]]-G99","v":0},{"$f":"DespesesProjecte[[#This Row],[Importe de la aportación / Cofinanciación de la organización]]-H99","v":0},{"$f":"DespesesProjecte[[#This Row],[Importe total del proyecto]]-I99","v":0}]
[null,null,null,{"$f":"SUM(DespesesProjecte[[#This Row],[Importe imputable a la subvención municipal]],DespesesProjecte[[#This Row],[Importe de la aportación / Cofinanciación de la organización]])","v":0},null,null,null,null,0,null,{"$f":"DespesesProjecte[[#This Row],[Importe imputable a la subvención municipal]]-G100","v":0},{"$f":"DespesesProjecte[[#This Row],[Importe de la aportación / Cofinanciación de la organización]]-H100","v":0},{"$f":"DespesesProjecte[[#This Row],[Importe total del proyecto]]-I100","v":0}]
["I9. Suministros",{"$f":"SUM(B102:B104)","v":0},{"$f":"SUM(C102:C104)","v":0},{"$f":"SUM(DespesesProjecte[[#This Row],[Importe imputable a la subvención municipal]],DespesesProjecte[[#This Row],[Importe de la aportación / Cofinanciación de la organización]])","v":0},null,"I9. Suministros ",{"$f":"SUM(G102:G104)","v":0},{"$f":"SUM(H102:H104)","v":0},0,null,{"$f":"DespesesProjecte[[#This Row],[Importe imputable a la subvención municipal]]-G101","v":0},{"$f":"DespesesProjecte[[#This Row],[Importe de la aportación / Cofinanciación de la organización]]-H101","v":0},{"$f":"DespesesProjecte[[#This Row],[Importe total del proyecto]]-I101","v":0}]
[null,null,null,{"$f":"SUM(DespesesProjecte[[#This Row],[Importe imputable a la subvención municipal]],DespesesProjecte[[#This Row],[Importe de la aportación / Cofinanciación de la organización]])","v":0},null,null,null,null,0,null,{"$f":"DespesesProjecte[[#This Row],[Importe imputable a la subvención municipal]]-G102","v":0},{"$f":"DespesesProjecte[[#This Row],[Importe de la aportación / Cofinanciación de la organización]]-H102","v":0},{"$f":"DespesesProjecte[[#This Row],[Importe total del proyecto]]-I102","v":0}]
[null,null,null,{"$f":"SUM(DespesesProjecte[[#This Row],[Importe imputable a la subvención municipal]],DespesesProjecte[[#This Row],[Importe de la aportación / Cofinanciación de la organización]])","v":0},null,null,null,null,0,null,{"$f":"DespesesProjecte[[#This Row],[Importe imputable a la subvención municipal]]-G103","v":0},{"$f":"DespesesProjecte[[#This Row],[Importe de la aportación / Cofinanciación de la organización]]-H103","v":0},{"$f":"DespesesProjecte[[#This Row],[Importe total del proyecto]]-I103","v":0}]
[null,null,null,{"$f":"SUM(DespesesProjecte[[#This Row],[Importe imputable a la subvención municipal]],DespesesProjecte[[#This Row],[Importe de la aportación / Cofinanciación de la organización]])","v":0},null,null,null,null,0,null,{"$f":"DespesesProjecte[[#This Row],[Importe imputable a la subvención municipal]]-G104","v":0},{"$f":"DespesesProjecte[[#This Row],[Importe de la aportación / Cofinanciación de la organización]]-H104","v":0},{"$f":"DespesesProjecte[[#This Row],[Importe total del proyecto]]-I104","v":0}]
["I10. Trabajo realizado por otras empresas, parcialmente imputables al proyecto (limpieza, seguridad...)",{"$f":"SUM(B106:B108)","v":0},{"$f":"SUM(C106:C108)","v":0},{"$f":"SUM(DespesesProjecte[[#This Row],[Importe imputable a la subvención municipal]],DespesesProjecte[[#This Row],[Importe de la aportación / Cofinanciación de la organización]])","v":0},null,"I10. Trabajo realizado por otras empresas, parcialmente imputables al proyecto (limpieza, seguridad...)",{"$f":"SUM(G106:G108)","v":0},{"$f":"SUM(H106:H108)","v":0},0,null,{"$f":"DespesesProjecte[[#This Row],[Importe imputable a la subvención municipal]]-G105","v":0},{"$f":"DespesesProjecte[[#This Row],[Importe de la aportación / Cofinanciación de la organización]]-H105","v":0},{"$f":"DespesesProjecte[[#This Row],[Importe total del proyecto]]-I105","v":0}]
[null,null,null,{"$f":"SUM(DespesesProjecte[[#This Row],[Importe imputable a la subvención municipal]],DespesesProjecte[[#This Row],[Importe de la aportación / Cofinanciación de la organización]])","v":0},null,null,null,null,0,null,{"$f":"DespesesProjecte[[#This Row],[Importe imputable a la subvención municipal]]-G106","v":0},{"$f":"DespesesProjecte[[#This Row],[Importe de la aportación / Cofinanciación de la organización]]-H106","v":0},{"$f":"DespesesProjecte[[#This Row],[Importe total del proyecto]]-I106","v":0}]
[null,null,null,{"$f":"SUM(DespesesProjecte[[#This Row],[Importe imputable a la subvención municipal]],DespesesProjecte[[#This Row],[Importe de la aportación / Cofinanciación de la organización]])","v":0},null,null,null,null,0,null,{"$f":"DespesesProjecte[[#This Row],[Importe imputable a la subvención municipal]]-G107","v":0},{"$f":"DespesesProjecte[[#This Row],[Importe de la aportación / Cofinanciación de la organización]]-H107","v":0},{"$f":"DespesesProjecte[[#This Row],[Importe total del proyecto]]-I107","v":0}]
[null,null,null,{"$f":"SUM(DespesesProjecte[[#This Row],[Importe imputable a la subvención municipal]],DespesesProjecte[[#This Row],[Importe de la aportación / Cofinanciación de la organización]])","v":0},null,null,null,null,0,null,{"$f":"DespesesProjecte[[#This Row],[Importe imputable a la subvención municipal]]-G108","v":0},{"$f":"DespesesProjecte[[#This Row],[Importe de la aportación / Cofinanciación de la organización]]-H108","v":0},{"$f":"DespesesProjecte[[#This Row],[Importe total del proyecto]]-I108","v":0}]
["TOTAL GASTOS INDIRECTOS (se podrán asignar al proyecto subvencionable utilizando un porcentaje de asignación) - Máximo 10% del importe imputable a la subvención municipal",{"$f":"SUM(B69,B73,B77,B81,B85,B89,B93,B97,B101,B105)","v":0},{"$f":"SUM(C69,C73,C77,C81,C85,C89,C93,C97,C101,C105)","v":0},{"$f":"SUM(D69,D73,D77,D81,D85,D89,D93,D97,D101,D105)","v":0},null,"TOTAL GASTOS INDIRECTOS (se podrán asignar al proyecto subvencionable utilizando un porcentaje de asignación) - Máximo 10% del importe imputable a la subvención municipal",{"$f":"SUM(G69,G73,G77,G81,G85,G89,G93,G97,G101,G105)","v":0},{"$f":"SUM(H69,H73,H77,H81,H85,H89,H93,H97,H101,H105)","v":0},{"$f":"SUM(I69,I73,I77,I81,I85,I89,I93,I97,I101,I105)","v":0},{"$f":"+IF(G109>G12*0.1,\"ALERTA: Màxim 10% de l'import imputable a la subvenció municipal\", \" \")","v":" "},{"$f":"DespesesProjecte[[#This Row],[Importe imputable a la subvención municipal]]-G109","v":0},{"$f":"DespesesProjecte[[#This Row],[Importe de la aportación / Cofinanciación de la organización]]-H109","v":0},{"$f":"DespesesProjecte[[#This Row],[Importe total del proyecto]]-I109","v":0}]
["TOTAL DE GASTOS PREVISTOS",{"$f":"SUM(B109,B68)","v":0},{"$f":"SUM(C109,C68)","v":0},{"$f":"SUM(D109,D68)","v":0},null,"TOTAL DE GASTOS PREVISTOS",{"$f":"SUM(G109,G68)","v":0},{"$f":"SUM(H109,H68)","v":0},{"$f":"SUM(I109,I68)","v":0},null,{"$f":"DespesesProjecte[[#This Row],[Importe imputable a la subvención municipal]]-G110","v":0},{"$f":"DespesesProjecte[[#This Row],[Importe de la aportación / Cofinanciación de la organización]]-H110","v":0},{"$f":"DespesesProjecte[[#This Row],[Importe total del proyecto]]-I110","v":0}]
[]
[]
["Modalidad Bc. Proyectos y acciones de intercooperación significativos para el desarrollo de los proyectos de ciudad de la #ESSBCN2030"]
["1. La cuantía de la subvención otorgada no superará el 80% del gasto total del proyecto a subvencionar. "]
["2. El importe máximo de subvención para esta modalidad Bc del ámbito temático de (B) Intercooperación es 20.000€."]
["3. En el caso de que la solicitud presentada sobrepase el importe máximo, se considerará como importe solicitado el máximo de lo establecido en la convocatoria."]
["4. En esta modalidad se aceptará la imputación de gastos de personal propio y directamente vinculado al proyecto de las organizaciones participantes del acuerdo de intercooperación presentado para el desarrollo del proyecto subvencionable."]
["5. Se limita con un máximo del 25% el importe de la subvención para gastos de personal propio asignado directamente al proyecto subvencionado."]
["6. En el caso de alquileres de inmuebles los gastos de alquiler se imputarán a los gastos indirectos con el límite establecido por éstos."]
["7. Para las subvenciones otorgadas por importe igual o superior a 20.000 € es obligatorio un informe de auditoría para la justificación. El importe de este informe se considera gasto subvencionable, con un límite máximo de 1.500€."]
["8. Son imputables en esta modalidad los gastos indirectos, detallados en el apartado 13.3. de las bases reguladoras; con un máximo del 10% del importe de la subvención.\n"]
["9. No se admitirá ninguna propuesta en esta modalidad que no presente el acuerdo de intercooperación por personas jurídicas para el proyecto presentado para recibir subvención."]
["10. Cuando se tenga que realizar gastos de más de 12.000 €, sin IVA, en el caso de prestaciones de servicios o entrega de bienes, se tendrán que incorporar tres presupuestos solicitados y argumentar el motivo de la adjudicación en el caso de no ser la propuesta más ventajosa económicamente."]
["11. Los proyectos de esta modalidad tendrán que entregar a su finalización un producto comunicativo, de acuerdo con el contenido establecido en la convocatoria de la subvención."]
["12. No serán elegibles facturas de empresas emitidas entre las organizaciones participantes del acuerdo de intercooperación."]
["13. En ningún caso se considerarán gastos subvencionables:\n> Los impuestos indirectos cuando sean susceptibles de recuperación o compensación.\n> Los gastos de inversión, incluídas las adquisiciones de bienes muebles.\n> Los gastos realizados con fecha anterior al inicio del proyecto y fecha posterior a la finalización del proyecto.\n> Otros gastos que se indiquen en la convocatoria."]
["14. La retribución de las personas contratadas en el marco del proyecto subvencionado no puede ser inferior al Salario Mínimo Interprofesional (SMI), ni a lo estipulado en el correspondiente convenio o marco normativo de referencia (punto 7 de las bases 2024: requisitos de los proyectos). "]
["15. Los materiales producidos de difusión, estudios, informes o materiales didácticos utilizados, etc. en el caso de tratarse de gasto elegible de la subvención, deberán tener licencia Creative Commons -Compartir Igual- (share a like) y no podrá tener la condición –Sin Obras Derivadas- (no derivate Works)."]
["16. Los proyectos subvencionados deben fomentar actividades de interés público o social, los cuales deben ser gratuitos para las personas participantes o en ningún caso el precio debe suponer un obstáculo para su participación, buscando otras formas de acceso para personas con dificultades económicas. En el caso de que haya algún tipo de lucro, tendrá que revertir en las propias actividades subvencionadas."]
["17. El Ayuntamiento de Barcelona y sus entidades municipales en ningún caso subvencionarán el mismo proyecto, ejecutado durante el mismo período, por ningún otro procedimiento de concesión que no sea el regulado por las bases reguladoras."]
["18. El/la beneficiario/aria no podrá alterar en ningún caso el destino de las subvenciones concedidas."]
["19. La organización designada como representante de la agrupación será plenamente responsable del proyecto ante el Ayuntamiento respecto al cumplimiento de las obligaciones establecidas en las bases reguladoras, sin prejuicio de la responsabilidad de las otras organizaciones socias de la agrupación, siéndole de aplicación los requisitos previstos en el punto 6.1 de las bases reguladoras."]
["20. En ningún caso podrán formar parte de la agrupación las organizaciones que hayan recibido otras subvenciones para la ejecución del mismo proyecto de otras administraciones públicas."]

{"sheet":"Resumen Presupuesto","index":2,"n_rows":26,"n_cols":11,"rows_kept":26,"cut":false,"hidden":false,"merged":[[23,7,23,9],[5,9,6,9],[1,2,1,7],[3,0,3,8],[19,2,20,2],[19,3,20,3],[19,4,20,4],[5,0,6,1],[5,2,6,2],[5,3,6,3],[5,4,6,4],[5,6,6,7],[5,8,6,8],[18,6,18,7],[19,0,20,1]]}
[]
[null,null,"Resumen presupuesto Modalidad Bc"]
[]
["Subvenciones del Ayuntamiento de Barcelona para el fortalecimiento de la Economía Social y Solidaria y para la intercooperación en la Estrategia #ESSBCN2030 - FORTALECEMOS LA ESS 2024",null,null,null,null,null,null,null,null,"MODALIDAD Bc"]
[]
["Gastos directos\n(aquellos que se identifican directamente con el proyecto)",null,"Previsión inicial coste total","Previsión reformulada coste total","Importe imputado a la subvención otorgada",null,"Ingresos previstos",null,"Previsión inicial ingreso total","Previsión reformulada ingreso total"]
[]
["Bc","D1. Retribuciones y seguridad social (régimen general o socios/as cooperativistas en régimen de autónomos) del personal propio vinculado al proyecto (máximo 25% subvención)",{"$f":"+'Reformulación Presupuesto Bc'!D21","v":0},{"$f":"+'Reformulación Presupuesto Bc'!I21","v":0},{"$f":"+'Reformulación Presupuesto Bc'!G21","v":0},{"$f":"+IF(D8<0,\"No s'admeten valors negatius\",\"\")","v":""},"A.","Subvención municipal (importe solicitado en la instancia/otorgado)",{"$f":"'Reformulación Presupuesto Bc'!B12","v":0},{"$f":"'Reformulación Presupuesto Bc'!G12","v":0}]
[null,"D2. Trabajos realizados por profesionales y empresas externas directamente vinculadas al proyecto subvencionado",{"$f":"+'Reformulación Presupuesto Bc'!D27","v":0},{"$f":"+'Reformulación Presupuesto Bc'!I27","v":0},{"$f":"+'Reformulación Presupuesto Bc'!G27","v":0},{"$f":"+IF(D9<0,\"No s'admeten valors negatius\",\"\")","v":""},"B.","Subvenciones de otras administraciones",null,null,{"$f":"+IF(J9<0,\"No s'admeten valors negatius\",\"\")","v":""}]
[null,"D3. Adquisición de materiales y bienes consumibles íntegramente imputables al proyecto ",{"$f":"+'Reformulación Presupuesto Bc'!D31","v":0},{"$f":"+'Reformulación Presupuesto Bc'!I31","v":0},{"$f":"+'Reformulación Presupuesto Bc'!G31","v":0},null,"C.","Subvenciones de entes privados",null,null,""]
[null,"D4. Transporte – mensajería imputables al proyecto ",{"$f":"+'Reformulación Presupuesto Bc'!D35","v":0},{"$f":"+'Reformulación Presupuesto Bc'!I35","v":0},{"$f":"+'Reformulación Presupuesto Bc'!G35","v":0},{"$f":"+IF(D10<0,\"No s'admeten valors negatius\",\"\")","v":""},"D.","Recursos propios de la organización aplicados al proyecto"]
[null,"D5. Publicidad y propaganda de las actividades directamente vinculadas al proyecto ",{"$f":"+'Reformulación Presupuesto Bc'!D39","v":0},{"$f":"+'Reformulación Presupuesto Bc'!I39","v":0},{"$f":"+'Reformulación Presupuesto Bc'!G39","v":0},null,"E.","Taquillaje"]
[null,"D6. Alojamiento y dietas, del personal contratado y voluntario, vinculados al proyecto",{"$f":"+'Reformulación Presupuesto Bc'!D43","v":0},{"$f":"+'Reformulación Presupuesto Bc'!I43","v":0},{"$f":"+'Reformulación Presupuesto Bc'!G43","v":0},null,"F.","Cuotas de inscripción"]
[null,"D7. Ayudas al transporte para los/las participantes de los proyectos en caso de que sea necesario de manera justificada",{"$f":"+'Reformulación Presupuesto Bc'!D47","v":0},{"$f":"+'Reformulación Presupuesto Bc'!I47","v":0},{"$f":"+'Reformulación Presupuesto Bc'!G47","v":0},null,"G.","Venta de Productos"]
[null,"D8. Viajes y desplazamientos imputables a las actividades del proyecto",{"$f":"+'Reformulación Presupuesto Bc'!D51","v":0},{"$f":"+'Reformulación Presupuesto Bc'!I51","v":0},{"$f":"+'Reformulación Presupuesto Bc'!G51","v":0},null,"H","Publicidad y/o Esponsorización"]
[null,"D9. Tributos, cuando sean abonados directamente por la persona jurídica o física beneficiaria",{"$f":"+'Reformulación Presupuesto Bc'!D55","v":0},{"$f":"+'Reformulación Presupuesto Bc'!I55","v":0},{"$f":"+'Reformulación Presupuesto Bc'!G55","v":0},null,"I.","Otros ingresos"]
[null,"D10. Gastos del informe de auditoría (máx. 1.500€ subvención)",{"$f":"+'Reformulación Presupuesto Bc'!D59","v":0},{"$f":"+'Reformulación Presupuesto Bc'!I59","v":0},{"$f":"+'Reformulación Presupuesto Bc'!G59","v":0},null,null,"Total Ingresos",{"$f":"SUM(I8:I16)","v":0},{"$f":"SUM(J8:J16)","v":0}]
[null,"D11. Otros gastos que de manera justificada y por la tipología del proyecto puedan imputarse directamente al proyecto",{"$f":"+'Reformulación Presupuesto Bc'!D63","v":0},{"$f":"+'Reformulación Presupuesto Bc'!I63","v":0},{"$f":"+'Reformulación Presupuesto Bc'!G63","v":0}]
[null,"Total Gastos Directos   ",{"$f":"SUM(C8:C18)","v":0},{"$f":"SUM(D8:D18)","v":0},{"$f":"SUM(E8:E18)","v":0},null,"Ingresos menos gastos ",null,{"$f":"+I17-C26","v":0},{"$f":"+J17-D26","v":0}]
["Gastos indirectos (se podrán asignar al proyecto utilizando un porcentaje de asignación) ",null,"Previsión inicial coste total","Previsión reformulada coste total","Importe imputado a la subvención otorgada"]
[null,null,null,null,null,null,null,null,"% subvencionado inicialmente",{"$f":"I8/C26","v":{"$error":"#DIV/0!"}}]
[]
[null,null,null,null,null,null,null,null,"% subvencionado después de reformular",{"$f":"+J8/D26","v":{"$error":"#DIV/0!"}},"*"]
[null,null,null,null,null,null,null,"*Este porcentaje debe ser igual o menor al porcentaje subvencionado inicialmente"]
[null,"Total Gastos Indirectos (Máx. 10% subv)",{"$f":"SUM(C22:C24)","v":0},{"$f":"SUM(D22:D24)","v":0},{"$f":"SUM(E22:E24)","v":0},{"$f":"+IF(D24<0,\"No s'admeten valors negatius\",\"\")","v":""}]
[null,"Total Gastos ",{"$f":"+C19+C25","v":0},{"$f":"+D19+D25","v":0},{"$f":"+E19+E25","v":0}]